[Event "Titled Tuesday Blitz June 20 Early 2023"]
[White "Vlassov, Nikolai"]
[Black "Alahakoon, Isuru"]
[WhiteFideId "4103360"]
[BlackFideId "9900993"]
[WhiteElo "2324"]
[BlackElo "1819"]
[Result "1-0"]
[Round "1"]
[TimeControl "180+2"]
[Date "2023.06.20"]
[WhiteClock "0:00:16"]
[BlackClock "0:00:04"]
[Board "151"]

1. e4 {[%clk 0:02:59]}  d5 {[%clk 0:02:59]} 2. exd5 {[%clk 0:02:59]}  Nf6 {[%clk 0:02:57]} 3. Bb5+ {[%clk 0:02:57]}  Bd7 {[%clk 0:02:54]} 4. Bc4 {[%clk 0:02:56]}  Bg4 {[%clk 0:02:54]} 5. f3 {[%clk 0:02:56]}  Bf5 {[%clk 0:02:49]} 6. g4 {[%clk 0:02:55]}  Bg6 {[%clk 0:02:48]} 7. Nc3 {[%clk 0:02:55]}  Nbd7 {[%clk 0:02:44]} 8. Nge2 {[%clk 0:02:53]}  Nb6 {[%clk 0:02:43]} 9. Bb5+ {[%clk 0:02:52]}  Nfd7 {[%clk 0:02:40]} 10. Nf4 {[%clk 0:02:51]}  a6 {[%clk 0:02:39]} 11. Bxd7+ {[%clk 0:02:45]}  Qxd7 {[%clk 0:02:38]} 12. h4 {[%clk 0:02:45]}  h6 {[%clk 0:02:25]} 13. Nxg6 {[%clk 0:02:44]}  fxg6 {[%clk 0:02:26]} 14. Qe2 {[%clk 0:02:43]}  O-O-O {[%clk 0:02:25]} 15. d3 {[%clk 0:02:21]}  Nxd5 {[%clk 0:02:21]} 16. Nxd5 {[%clk 0:02:16]}  Qxd5 {[%clk 0:02:22]} 17. Qe4 {[%clk 0:02:13]}  Qc5 {[%clk 0:02:13]} 18. Kd1 {[%clk 0:01:37]}  e5 {[%clk 0:01:50]} 19. Be3 {[%clk 0:01:34]}  Qd6 {[%clk 0:01:47]} 20. Bf2 {[%clk 0:01:20]}  Be7 {[%clk 0:01:39]} 21. Kd2 {[%clk 0:01:12]}  Rhf8 {[%clk 0:01:36]} 22. Bg3 {[%clk 0:01:12]}  Qb4+ {[%clk 0:01:19]} 23. Qxb4 {[%clk 0:01:11]}  Bxb4+ {[%clk 0:01:19]} 24. Ke2 {[%clk 0:01:08]}  Bd6 {[%clk 0:01:17]} 25. Rae1 {[%clk 0:01:03]}  e4 {[%clk 0:01:13]} 26. Bxd6 {[%clk 0:00:50]}  exf3+ {[%clk 0:01:13]} 27. Kf2 {[%clk 0:00:50]}  Rxd6 {[%clk 0:01:10]} 28. Re4 {[%clk 0:00:34]}  Rb6 {[%clk 0:01:01]} 29. b3 {[%clk 0:00:33]}  Rc6 {[%clk 0:01:00]} 30. c4 {[%clk 0:00:31]}  Rd6 {[%clk 0:01:00]} 31. d4 {[%clk 0:00:20]}  Rdf6 {[%clk 0:01:01]} 32. Rhe1 {[%clk 0:00:19]}  Rf4 {[%clk 0:01:00]} 33. R1e3 {[%clk 0:00:17]}  h5 {[%clk 0:00:50]} 34. g5 {[%clk 0:00:16]}  R8f7 {[%clk 0:00:45]} 35. d5 {[%clk 0:00:16]}  Kd7 {[%clk 0:00:44]} 36. Rxf4 {[%clk 0:00:15]}  Rxf4 {[%clk 0:00:43]} 37. Rxf3 {[%clk 0:00:16]}  Rxh4 {[%clk 0:00:41]} 38. Rf7+ {[%clk 0:00:16]}  Kd6 {[%clk 0:00:41]} 39. Rxg7 {[%clk 0:00:16]}  Rh2+ {[%clk 0:00:40]} 40. Kf3 {[%clk 0:00:16]}  Rxa2 {[%clk 0:00:40]} 41. Rxg6+ {[%clk 0:00:16]}  Ke5 {[%clk 0:00:36]} 42. Rg7 {[%clk 0:00:17]}  Rb2 {[%clk 0:00:33]} 43. Rxc7 {[%clk 0:00:16]}  Rxb3+ {[%clk 0:00:34]} 44. Kg2 {[%clk 0:00:17]}  Kf5 {[%clk 0:00:33]} 45. d6 {[%clk 0:00:16]}  Ke6 {[%clk 0:00:24]} 46. c5 {[%clk 0:00:14]}  h4 {[%clk 0:00:22]} 47. g6 {[%clk 0:00:15]}  Rg3+ {[%clk 0:00:21]} 48. Kh2 {[%clk 0:00:15]}  Rxg6 {[%clk 0:00:21]} 49. Rxb7 {[%clk 0:00:15]}  Rg5 {[%clk 0:00:19]} 50. Re7+ {[%clk 0:00:15]}  Kf6 {[%clk 0:00:18]} 51. c6 {[%clk 0:00:15]}  Rc5 {[%clk 0:00:11]} 52. c7 {[%clk 0:00:15]}  Rc6 {[%clk 0:00:10]} 53. Re8 {[%clk 0:00:15]}  Rc2+ {[%clk 0:00:08]} 54. Kh3 {[%clk 0:00:15]}  Rc3+ {[%clk 0:00:09]} 55. Kxh4 {[%clk 0:00:15]}  Rc4+ {[%clk 0:00:10]} 56. Kg3 {[%clk 0:00:16]}  Rc3+ {[%clk 0:00:07]} 57. Kf2 {[%clk 0:00:16]}  Rc2+ {[%clk 0:00:06]} 58. Ke3 {[%clk 0:00:16]}  Rc5 {[%clk 0:00:04]} 59. c8=Q {[%clk 0:00:16]} 1-0


[Site "https://www.chess.com"]

[Event "Titled Tuesday Blitz June 20 Early 2023"]
[White "Shapiro, Daniel"]
[Black "Seemann, Jakub"]
[WhiteFideId "2001780"]
[BlackFideId "21874697"]
[WhiteElo "2336"]
[BlackElo "2364"]
[Result "0-1"]
[Round "1"]
[TimeControl "180+2"]
[Date "2023.06.20"]
[WhiteClock "0:00:00"]
[BlackClock "0:00:12"]
[Board "152"]

1. d4 {[%clk 0:02:58]}  Nf6 {[%clk 0:02:59]} 2. c4 {[%clk 0:02:58]}  e6 {[%clk 0:02:57]} 3. g3 {[%clk 0:02:54]}  d5 {[%clk 0:02:56]} 4. Nf3 {[%clk 0:02:54]}  dxc4 {[%clk 0:02:53]} 5. Bg2 {[%clk 0:02:53]}  Nc6 {[%clk 0:02:51]} 6. Qa4 {[%clk 0:02:51]}  Bb4+ {[%clk 0:02:49]} 7. Bd2 {[%clk 0:02:52]}  Nd5 {[%clk 0:02:48]} 8. Bxb4 {[%clk 0:02:50]}  Nxb4 {[%clk 0:02:45]} 9. a3 {[%clk 0:02:51]}  b5 {[%clk 0:02:15]} 10. Qxb5 {[%clk 0:02:50]}  Nc2+ {[%clk 0:02:13]} 11. Kd2 {[%clk 0:02:50]}  Bd7 {[%clk 0:02:06]} 12. Kxc2 {[%clk 0:02:42]}  Nxd4+ {[%clk 0:02:04]} 13. Nxd4 {[%clk 0:02:42]}  Bxb5 {[%clk 0:02:03]} 14. Nxb5 {[%clk 0:02:43]}  O-O {[%clk 0:01:40]} 15. Bxa8 {[%clk 0:02:01]}  Qxa8 {[%clk 0:01:41]} 16. N1c3 {[%clk 0:01:58]}  a6 {[%clk 0:01:26]} 17. Nd4 {[%clk 0:01:56]}  c5 {[%clk 0:01:24]} 18. Nf3 {[%clk 0:01:54]}  Qb7 {[%clk 0:01:21]} 19. Rhd1 {[%clk 0:01:27]}  g5 {[%clk 0:01:09]} 20. h3 {[%clk 0:01:13]}  f6 {[%clk 0:01:01]} 21. Nd2 {[%clk 0:01:13]}  Qg2 {[%clk 0:00:54]} 22. Rf1 {[%clk 0:01:11]}  Qxh3 {[%clk 0:00:52]} 23. Nxc4 {[%clk 0:01:11]}  Qf5+ {[%clk 0:00:51]} 24. e4 {[%clk 0:01:07]}  Qf3 {[%clk 0:00:49]} 25. Rad1 {[%clk 0:01:07]}  Rb8 {[%clk 0:00:46]} 26. Rd3 {[%clk 0:01:04]}  Qh5 {[%clk 0:00:40]} 27. Rfd1 {[%clk 0:01:03]}  Qh2 {[%clk 0:00:26]} 28. R1d2 {[%clk 0:01:02]}  h5 {[%clk 0:00:24]} 29. Rd7 {[%clk 0:01:01]}  h4 {[%clk 0:00:16]} 30. gxh4 {[%clk 0:01:00]}  gxh4 {[%clk 0:00:17]} 31. Re7 {[%clk 0:01:00]}  h3 {[%clk 0:00:15]} 32. Rdd7 {[%clk 0:00:59]}  Qg2 {[%clk 0:00:13]} 33. Rg7+ {[%clk 0:00:46]}  Qxg7 {[%clk 0:00:13]} 34. Rxg7+ {[%clk 0:00:46]}  Kxg7 {[%clk 0:00:14]} 35. Ne2 {[%clk 0:00:40]}  h2 {[%clk 0:00:13]} 36. Ng3 {[%clk 0:00:40]}  Kg6 {[%clk 0:00:13]} 37. Ne3 {[%clk 0:00:36]}  Rh8 {[%clk 0:00:13]} 38. Nh1 {[%clk 0:00:35]}  Kg5 {[%clk 0:00:14]} 39. Kd2 {[%clk 0:00:33]}  Kf4 {[%clk 0:00:14]} 40. Ke2 {[%clk 0:00:33]}  Kxe4 {[%clk 0:00:14]} 41. Ng4 {[%clk 0:00:33]}  f5 {[%clk 0:00:13]} 42. Ne3 {[%clk 0:00:32]}  a5 {[%clk 0:00:11]} 43. Nc4 {[%clk 0:00:30]}  a4 {[%clk 0:00:11]} 44. Nd2+ {[%clk 0:00:29]}  Kd5 {[%clk 0:00:11]} 45. Kf3 {[%clk 0:00:26]}  Rb8 {[%clk 0:00:12]} 46. Kg2 {[%clk 0:00:24]}  Rxb2 {[%clk 0:00:12]} 47. Nf3 {[%clk 0:00:24]}  Rb3 {[%clk 0:00:12]} 48. Nxh2 {[%clk 0:00:23]}  Rxa3 {[%clk 0:00:13]} 49. Nf3 {[%clk 0:00:22]}  Rxf3 {[%clk 0:00:12]} 50. Kxf3 {[%clk 0:00:21]}  a3 {[%clk 0:00:13]} 51. Ng3 {[%clk 0:00:18]}  a2 {[%clk 0:00:13]} 52. Ne2 {[%clk 0:00:18]}  a1=Q {[%clk 0:00:13]} 53. Nc3+ {[%clk 0:00:19]}  Qxc3+ {[%clk 0:00:12]} 54. Kf4 {[%clk 0:00:00]}  Qd4+ {[%clk 0:00:12]} 0-1


[Site "https://www.chess.com"]

[Event "Titled Tuesday Blitz June 20 Early 2023"]
[White "Domingo Nunez, Alejandro"]
[Black "Sovetbekova, Nurai"]
[WhiteFideId "22245561"]
[BlackFideId "13801910"]
[WhiteElo "2291"]
[BlackElo "1857"]
[Result "1-0"]
[Round "1"]
[TimeControl "180+2"]
[Date "2023.06.20"]
[WhiteClock "0:01:05"]
[BlackClock "0:00:06"]
[Board "153"]

1. Nf3 {[%clk 0:03:00]}  d5 {[%clk 0:02:58]} 2. g3 {[%clk 0:03:00]}  Nd7 {[%clk 0:02:56]} 3. d4 {[%clk 0:02:59]}  Nb6 {[%clk 0:02:54]} 4. Bg2 {[%clk 0:02:59]}  Nf6 {[%clk 0:02:55]} 5. O-O {[%clk 0:02:56]}  Bf5 {[%clk 0:02:55]} 6. Nh4 {[%clk 0:02:57]}  Bg4 {[%clk 0:02:51]} 7. f3 {[%clk 0:02:49]}  Bh5 {[%clk 0:02:51]} 8. g4 {[%clk 0:02:49]}  Bg6 {[%clk 0:02:51]} 9. Nxg6 {[%clk 0:02:47]}  hxg6 {[%clk 0:02:50]} 10. e4 {[%clk 0:02:32]}  dxe4 {[%clk 0:02:36]} 11. fxe4 {[%clk 0:02:32]}  e6 {[%clk 0:02:36]} 12. Nc3 {[%clk 0:02:23]}  c6 {[%clk 0:02:18]} 13. h3 {[%clk 0:01:47]}  Qd7 {[%clk 0:02:07]} 14. Qd3 {[%clk 0:01:45]}  O-O-O {[%clk 0:02:03]} 15. Be3 {[%clk 0:01:46]}  Bb4 {[%clk 0:00:47]} 16. a3 {[%clk 0:01:37]}  Bxc3 {[%clk 0:00:47]} 17. Qxc3 {[%clk 0:01:38]}  Na8 {[%clk 0:00:29]} 18. b4 {[%clk 0:01:35]}  Nc7 {[%clk 0:00:29]} 19. a4 {[%clk 0:01:35]}  Rh7 {[%clk 0:00:11]} 20. b5 {[%clk 0:01:33]}  cxb5 {[%clk 0:00:11]} 21. axb5 {[%clk 0:01:33]}  Qxb5 {[%clk 0:00:12]} 22. Rfb1 {[%clk 0:01:33]}  Qc6 {[%clk 0:00:12]} 23. Qxc6 {[%clk 0:01:31]}  bxc6 {[%clk 0:00:12]} 24. Rxa7 {[%clk 0:01:31]}  Kd7 {[%clk 0:00:12]} 25. Bf4 {[%clk 0:01:30]}  Rc8 {[%clk 0:00:11]} 26. Rbb7 {[%clk 0:01:30]}  Ne8 {[%clk 0:00:09]} 27. d5 {[%clk 0:01:27]}  c5 {[%clk 0:00:08]} 28. Bf1 {[%clk 0:01:26]}  g5 {[%clk 0:00:07]} 29. Bb5+ {[%clk 0:01:26]}  Ke7 {[%clk 0:00:07]} 30. Bxc7 {[%clk 0:01:25]}  exd5 {[%clk 0:00:08]} 31. Be5+ {[%clk 0:01:06]}  Ke6 {[%clk 0:00:06]} 32. Re7# {[%clk 0:01:05]} 1-0


[Site "https://www.chess.com"]

[Event "Titled Tuesday Blitz June 20 Early 2023"]
[White "Shtompel, Yuriy"]
[Black "Stepanencu, Nicodim-Cosmin"]
[WhiteFideId "14168278"]
[BlackFideId "1256220"]
[WhiteElo "1844"]
[BlackElo "2154"]
[Result "1/2-1/2"]
[Round "1"]
[TimeControl "180+2"]
[Date "2023.06.20"]
[WhiteClock "0:00:04"]
[BlackClock "0:00:04"]
[Board "154"]

1. Nf3 {[%clk 0:03:00]}  Nf6 {[%clk 0:02:52]} 2. g3 {[%clk 0:02:58]}  b6 {[%clk 0:02:50]} 3. Bg2 {[%clk 0:02:53]}  Bb7 {[%clk 0:02:51]} 4. O-O {[%clk 0:02:52]}  g6 {[%clk 0:02:50]} 5. d3 {[%clk 0:02:49]}  Bg7 {[%clk 0:02:50]} 6. e4 {[%clk 0:02:41]}  O-O {[%clk 0:02:48]} 7. Re1 {[%clk 0:02:25]}  c5 {[%clk 0:02:48]} 8. Nbd2 {[%clk 0:02:16]}  d6 {[%clk 0:02:48]} 9. c3 {[%clk 0:02:15]}  Nc6 {[%clk 0:02:47]} 10. h3 {[%clk 0:02:10]}  e5 {[%clk 0:02:44]} 11. Nc4 {[%clk 0:01:47]}  Re8 {[%clk 0:02:43]} 12. Ne3 {[%clk 0:01:34]}  h6 {[%clk 0:02:43]} 13. a3 {[%clk 0:01:29]}  a5 {[%clk 0:02:37]} 14. c4 {[%clk 0:01:29]}  a4 {[%clk 0:02:34]} 15. Nd5 {[%clk 0:01:26]}  Nxd5 {[%clk 0:02:23]} 16. cxd5 {[%clk 0:01:18]}  Nd4 {[%clk 0:02:19]} 17. Nxd4 {[%clk 0:01:16]}  exd4 {[%clk 0:02:19]} 18. h4 {[%clk 0:01:13]}  b5 {[%clk 0:02:18]} 19. Bf4 {[%clk 0:01:12]}  c4 {[%clk 0:02:15]} 20. Bf1 {[%clk 0:01:12]}  c3 {[%clk 0:02:15]} 21. bxc3 {[%clk 0:01:08]}  dxc3 {[%clk 0:02:15]} 22. d4 {[%clk 0:01:08]}  Qb6 {[%clk 0:02:08]} 23. Rb1 {[%clk 0:01:03]}  Qxd4 {[%clk 0:01:32]} 24. Qxd4 {[%clk 0:00:47]}  Bxd4 {[%clk 0:01:33]} 25. Rxb5 {[%clk 0:00:45]}  Ba6 {[%clk 0:01:31]} 26. Rb4 {[%clk 0:00:45]}  Bc5 {[%clk 0:01:22]} 27. Rxa4 {[%clk 0:00:34]}  Bxf1 {[%clk 0:01:21]} 28. Rxa8 {[%clk 0:00:33]}  Rxa8 {[%clk 0:01:22]} 29. Kxf1 {[%clk 0:00:34]}  Rxa3 {[%clk 0:01:19]} 30. Rc1 {[%clk 0:00:32]}  Ra2 {[%clk 0:00:45]} 31. Rxc3 {[%clk 0:00:27]}  Rxf2+ {[%clk 0:00:45]} 32. Ke1 {[%clk 0:00:27]}  Ra2 {[%clk 0:00:13]} 33. Kd1 {[%clk 0:00:17]}  Ra4 {[%clk 0:00:10]} 34. e5 {[%clk 0:00:16]}  Rd4+ {[%clk 0:00:09]} 35. Ke2 {[%clk 0:00:14]}  Rxd5 {[%clk 0:00:09]} 36. exd6 {[%clk 0:00:11]}  Bxd6 {[%clk 0:00:10]} 37. Rc8+ {[%clk 0:00:11]}  Kg7 {[%clk 0:00:09]} 38. Rd8 {[%clk 0:00:11]}  Bxf4 {[%clk 0:00:08]} 39. Rxd5 {[%clk 0:00:11]}  Bxg3 {[%clk 0:00:08]} 40. h5 {[%clk 0:00:11]}  g5 {[%clk 0:00:08]} 41. Kf3 {[%clk 0:00:11]}  Bf4 {[%clk 0:00:08]} 42. Kg4 {[%clk 0:00:12]}  Kf6 {[%clk 0:00:09]} 43. Ra5 {[%clk 0:00:10]}  Ke6 {[%clk 0:00:09]} 44. Ra6+ {[%clk 0:00:11]}  Bd6 {[%clk 0:00:10]} 45. Ra5 {[%clk 0:00:11]}  f6 {[%clk 0:00:10]} 46. Rf5 {[%clk 0:00:11]}  Be5 {[%clk 0:00:10]} 47. Rf1 {[%clk 0:00:11]}  Bf4 {[%clk 0:00:10]} 48. Re1+ {[%clk 0:00:10]}  Be5 {[%clk 0:00:11]} 49. Rf1 {[%clk 0:00:10]}  Kd5 {[%clk 0:00:08]} 50. Kf5 {[%clk 0:00:10]}  Bd4 {[%clk 0:00:06]} 51. Rd1 {[%clk 0:00:05]}  Kc4 {[%clk 0:00:06]} 52. Kg6 {[%clk 0:00:04]}  g4 {[%clk 0:00:07]} 53. Kxh6 {[%clk 0:00:04]}  g3 {[%clk 0:00:07]} 54. Kg6 {[%clk 0:00:04]}  g2 {[%clk 0:00:08]} 55. h6 {[%clk 0:00:04]}  f5 {[%clk 0:00:03]} 56. Kxf5 {[%clk 0:00:05]}  g1=Q {[%clk 0:00:03]} 57. Rxg1 {[%clk 0:00:05]}  Bxg1 {[%clk 0:00:03]} 58. h7 {[%clk 0:00:04]}  Bd4 {[%clk 0:00:04]} 59. h8=Q {[%clk 0:00:04]}  Bxh8 {[%clk 0:00:04]} 1/2-1/2


[Site "https://www.chess.com"]

[Event "Titled Tuesday Blitz June 20 Early 2023"]
[White "Skawinski, Arkadiusz"]
[Black "Pavlidou, Ekaterini"]
[WhiteFideId "1126415"]
[BlackFideId "4213262"]
[WhiteElo "2218"]
[BlackElo "2126"]
[Result "1-0"]
[Round "1"]
[TimeControl "180+2"]
[Date "2023.06.20"]
[WhiteClock "0:00:22"]
[BlackClock "0:00:00"]
[Board "157"]

1. e4 {[%clk 0:03:00]}  c5 {[%clk 0:02:57]} 2. Nf3 {[%clk 0:03:01]}  e6 {[%clk 0:02:57]} 3. c3 {[%clk 0:03:01]}  d5 {[%clk 0:02:56]} 4. exd5 {[%clk 0:03:01]}  Qxd5 {[%clk 0:02:56]} 5. d4 {[%clk 0:03:01]}  Nf6 {[%clk 0:02:55]} 6. Be3 {[%clk 0:03:01]}  cxd4 {[%clk 0:02:54]} 7. cxd4 {[%clk 0:03:02]}  Bb4+ {[%clk 0:02:54]} 8. Nc3 {[%clk 0:03:02]}  Nc6 {[%clk 0:02:53]} 9. Bd3 {[%clk 0:02:57]}  Qa5 {[%clk 0:02:48]} 10. O-O {[%clk 0:02:47]}  Bxc3 {[%clk 0:02:43]} 11. bxc3 {[%clk 0:02:46]}  O-O {[%clk 0:02:38]} 12. Bg5 {[%clk 0:02:35]}  Nd5 {[%clk 0:02:32]} 13. c4 {[%clk 0:02:31]}  Ndb4 {[%clk 0:02:31]} 14. Bb1 {[%clk 0:02:30]}  h6 {[%clk 0:02:08]} 15. a3 {[%clk 0:02:28]}  hxg5 {[%clk 0:02:01]} 16. axb4 {[%clk 0:02:28]}  Qd8 {[%clk 0:01:59]} 17. b5 {[%clk 0:02:24]}  Nb8 {[%clk 0:01:59]} 18. Ne5 {[%clk 0:01:47]}  g6 {[%clk 0:01:53]} 19. Qd3 {[%clk 0:01:33]}  Qf6 {[%clk 0:01:38]} 20. Ra3 {[%clk 0:01:20]}  Nd7 {[%clk 0:01:37]} 21. Ng4 {[%clk 0:01:20]}  Qh8 {[%clk 0:01:26]} 22. Qe3 {[%clk 0:01:15]}  Qh4 {[%clk 0:01:22]} 23. h3 {[%clk 0:01:07]}  Kg7 {[%clk 0:01:10]} 24. Qc3 {[%clk 0:00:40]}  f6 {[%clk 0:00:48]} 25. Re1 {[%clk 0:00:39]}  Re8 {[%clk 0:00:45]} 26. c5 {[%clk 0:00:38]}  Nf8 {[%clk 0:00:41]} 27. c6 {[%clk 0:00:36]}  b6 {[%clk 0:00:30]} 28. d5 {[%clk 0:00:32]}  e5 {[%clk 0:00:30]} 29. d6 {[%clk 0:00:30]}  Bxg4 {[%clk 0:00:29]} 30. hxg4 {[%clk 0:00:30]}  Ne6 {[%clk 0:00:28]} 31. Qh3 {[%clk 0:00:24]}  Qxh3 {[%clk 0:00:23]} 32. gxh3 {[%clk 0:00:24]}  Nd4 {[%clk 0:00:22]} 33. Bd3 {[%clk 0:00:21]}  Re6 {[%clk 0:00:19]} 34. Bc4 {[%clk 0:00:21]}  Rxd6 {[%clk 0:00:18]} 35. Rea1 {[%clk 0:00:21]}  Nc2 {[%clk 0:00:16]} 36. Rxa7+ {[%clk 0:00:21]}  Rxa7 {[%clk 0:00:15]} 37. Rxa7+ {[%clk 0:00:22]}  Kf8 {[%clk 0:00:15]} 38. c7 {[%clk 0:00:22]}  Rd1+ {[%clk 0:00:13]} 39. Kh2 {[%clk 0:00:22]}  Rd2 {[%clk 0:00:00]} 40. c8=Q+ {[%clk 0:00:22]} 1-0


[Site "https://www.chess.com"]

[Event "Titled Tuesday Blitz June 20 Early 2023"]
[White "Gubajdullin, Alexei"]
[Black "Martin, Lewis"]
[WhiteFideId "4141202"]
[BlackFideId "410551"]
[WhiteElo "2279"]
[BlackElo "2145"]
[Result "1-0"]
[Round "1"]
[TimeControl "180+2"]
[Date "2023.06.20"]
[WhiteClock "0:00:45"]
[BlackClock "0:00:03"]
[Board "159"]

1. d4 {[%clk 0:02:53]}  d5 {[%clk 0:02:59]} 2. Nf3 {[%clk 0:02:53]}  Nf6 {[%clk 0:02:59]} 3. Bf4 {[%clk 0:02:53]}  c6 {[%clk 0:02:57]} 4. e3 {[%clk 0:02:52]}  e6 {[%clk 0:02:51]} 5. c4 {[%clk 0:02:51]}  Nbd7 {[%clk 0:02:46]} 6. Nc3 {[%clk 0:02:51]}  dxc4 {[%clk 0:02:45]} 7. Bxc4 {[%clk 0:02:50]}  b5 {[%clk 0:02:45]} 8. Be2 {[%clk 0:02:49]}  Bb7 {[%clk 0:02:45]} 9. O-O {[%clk 0:02:48]}  Be7 {[%clk 0:02:45]} 10. a4 {[%clk 0:02:40]}  a6 {[%clk 0:02:44]} 11. axb5 {[%clk 0:02:35]}  cxb5 {[%clk 0:02:43]} 12. Ne5 {[%clk 0:02:30]}  O-O {[%clk 0:02:41]} 13. Bf3 {[%clk 0:02:29]}  Bxf3 {[%clk 0:02:37]} 14. Qxf3 {[%clk 0:02:29]}  Nxe5 {[%clk 0:02:23]} 15. dxe5 {[%clk 0:02:28]}  Nd7 {[%clk 0:02:12]} 16. Rfd1 {[%clk 0:02:28]}  Qc7 {[%clk 0:02:11]} 17. Qg3 {[%clk 0:02:24]}  Rfd8 {[%clk 0:02:05]} 18. Ne4 {[%clk 0:02:23]}  Nf8 {[%clk 0:01:58]} 19. h4 {[%clk 0:02:09]}  Rxd1+ {[%clk 0:01:49]} 20. Rxd1 {[%clk 0:02:08]}  Qc2 {[%clk 0:01:49]} 21. Qf3 {[%clk 0:02:05]}  Rd8 {[%clk 0:01:46]} 22. Rf1 {[%clk 0:01:54]}  Bxh4 {[%clk 0:01:37]} 23. b4 {[%clk 0:01:41]}  Ng6 {[%clk 0:01:28]} 24. Bh2 {[%clk 0:01:38]}  Be7 {[%clk 0:01:24]} 25. Nd6 {[%clk 0:01:37]}  Nxe5 {[%clk 0:01:19]} 26. Bxe5 {[%clk 0:01:37]}  Bxd6 {[%clk 0:01:20]} 27. Rd1 {[%clk 0:01:36]}  Be7 {[%clk 0:00:56]} 28. Rxd8+ {[%clk 0:01:35]}  Bxd8 {[%clk 0:00:56]} 29. Qa8 {[%clk 0:01:36]}  Qd1+ {[%clk 0:00:50]} 30. Kh2 {[%clk 0:01:35]}  Qd7 {[%clk 0:00:43]} 31. Bd4 {[%clk 0:01:24]}  f6 {[%clk 0:00:40]} 32. g3 {[%clk 0:01:17]}  Kf7 {[%clk 0:00:39]} 33. Qxa6 {[%clk 0:01:16]}  e5 {[%clk 0:00:35]} 34. Bc5 {[%clk 0:01:16]}  Be7 {[%clk 0:00:34]} 35. Qa2+ {[%clk 0:01:15]}  Qe6 {[%clk 0:00:32]} 36. Qa7 {[%clk 0:01:14]}  f5 {[%clk 0:00:29]} 37. Qb7 {[%clk 0:01:09]}  Kf6 {[%clk 0:00:22]} 38. Qxb5 {[%clk 0:01:07]}  Bxc5 {[%clk 0:00:19]} 39. bxc5 {[%clk 0:01:06]}  f4 {[%clk 0:00:19]} 40. c6 {[%clk 0:01:04]}  f3 {[%clk 0:00:17]} 41. c7 {[%clk 0:00:58]}  Kf5 {[%clk 0:00:17]} 42. Qd3+ {[%clk 0:00:49]}  e4 {[%clk 0:00:16]} 43. Qd8 {[%clk 0:00:47]}  Qh6+ {[%clk 0:00:07]} 44. Kg1 {[%clk 0:00:46]}  Qh3 {[%clk 0:00:06]} 45. c8=Q+ {[%clk 0:00:46]}  Kg6 {[%clk 0:00:03]} 46. Qxh3 {[%clk 0:00:45]} 1-0


[Site "https://www.chess.com"]

[Event "Titled Tuesday Blitz June 20 Early 2023"]
[White "Principe, Gerson"]
[Black "Jiganchine, Roman"]
[WhiteFideId "3804550"]
[BlackFideId "2603667"]
[WhiteElo "2229"]
[BlackElo "2318"]
[Result "1-0"]
[Round "1"]
[TimeControl "180+2"]
[Date "2023.06.20"]
[WhiteClock "0:00:11"]
[BlackClock "0:00:00"]
[Board "165"]

1. Nf3 {[%clk 0:02:59]}  d5 {[%clk 0:01:34]} 2. b3 {[%clk 0:02:53]}  Nf6 {[%clk 0:01:31]} 3. Bb2 {[%clk 0:02:53]}  e6 {[%clk 0:01:32]} 4. g3 {[%clk 0:02:52]}  c5 {[%clk 0:01:31]} 5. Bg2 {[%clk 0:02:53]}  Nc6 {[%clk 0:01:32]} 6. O-O {[%clk 0:02:54]}  Bd6 {[%clk 0:01:32]} 7. d4 {[%clk 0:02:54]}  a5 {[%clk 0:01:31]} 8. c4 {[%clk 0:02:44]}  a4 {[%clk 0:01:21]} 9. cxd5 {[%clk 0:02:43]}  exd5 {[%clk 0:01:20]} 10. dxc5 {[%clk 0:02:42]}  Bxc5 {[%clk 0:01:20]} 11. bxa4 {[%clk 0:02:41]}  Be6 {[%clk 0:01:18]} 12. Nc3 {[%clk 0:02:40]}  O-O {[%clk 0:01:16]} 13. Nd2 {[%clk 0:02:29]}  Be7 {[%clk 0:01:12]} 14. Nb3 {[%clk 0:02:28]}  Qb6 {[%clk 0:01:05]} 15. e3 {[%clk 0:02:22]}  Rfd8 {[%clk 0:01:04]} 16. Qe2 {[%clk 0:01:36]}  Ne5 {[%clk 0:00:50]} 17. Qb5 {[%clk 0:01:25]}  Nc4 {[%clk 0:00:44]} 18. Qxb6 {[%clk 0:01:24]}  Nxb6 {[%clk 0:00:45]} 19. Rfd1 {[%clk 0:01:19]}  Nc4 {[%clk 0:00:39]} 20. Bc1 {[%clk 0:01:07]}  Bb4 {[%clk 0:00:37]} 21. Nb5 {[%clk 0:01:05]}  Rxa4 {[%clk 0:00:34]} 22. N3d4 {[%clk 0:01:04]}  Bf8 {[%clk 0:00:20]} 23. Nxe6 {[%clk 0:00:55]}  fxe6 {[%clk 0:00:20]} 24. e4 {[%clk 0:00:56]}  Ra5 {[%clk 0:00:16]} 25. Nc7 {[%clk 0:00:42]}  Kf7 {[%clk 0:00:16]} 26. Bg5 {[%clk 0:00:32]}  d4 {[%clk 0:00:13]} 27. Bd2 {[%clk 0:00:17]}  Ra4 {[%clk 0:00:10]} 28. Bh3 {[%clk 0:00:15]}  Rd6 {[%clk 0:00:09]} 29. Nxe6 {[%clk 0:00:13]}  Rxe6 {[%clk 0:00:09]} 30. Bxe6+ {[%clk 0:00:14]}  Kxe6 {[%clk 0:00:09]} 31. f3 {[%clk 0:00:14]}  Ne5 {[%clk 0:00:07]} 32. Kg2 {[%clk 0:00:14]}  Bc5 {[%clk 0:00:06]} 33. Bf4 {[%clk 0:00:15]}  Nc4 {[%clk 0:00:05]} 34. h4 {[%clk 0:00:13]}  h5 {[%clk 0:00:04]} 35. Bg5 {[%clk 0:00:13]}  Nd7 {[%clk 0:00:04]} 36. Kh3 {[%clk 0:00:12]}  Nde5 {[%clk 0:00:04]} 37. f4 {[%clk 0:00:12]}  Nf3 {[%clk 0:00:04]} 38. Kg2 {[%clk 0:00:11]}  Rb4 {[%clk 0:00:04]} 39. Kxf3 {[%clk 0:00:11]}  Rb2 {[%clk 0:00:02]} 40. f5+ {[%clk 0:00:10]}  Ke5 {[%clk 0:00:01]} 41. Bf4+ {[%clk 0:00:10]}  Kf6 {[%clk 0:00:00]} 42. Rab1 {[%clk 0:00:11]} 1-0


[Site "https://www.chess.com"]